bitfinex-derivatives/quotes_SOLF0:USTF0_20251020
["timestamp","ask_amount","ask_price","bid_price","bid_amount"]
[1760989095443,2.84,188.78,188.71,4.7821899]
[1760989095643,2.84,188.78,188.72,4.04993502]
[1760989095842,2.84,188.78,188.71,4.7821899]
[1760989096847,2.84,188.78,188.71,2.0421899]
[1760989097152,2.84,188.74,188.68,4.8321899]
[1760989097452,2.84,188.74,188.69,4.05197635]
[1760989097646,2.84,188.74,188.68,4.8321899]
[1760989097842,2.84,188.74,188.69,4.05155822]
[1760989098044,4.7678,188.73,188.7,2.79]
[1760989098448,7.6078,188.73,188.68,4.8321899]
[1760989098649,4.7678,188.73,188.69,6.84114159]
[1760989098853,7.6078,188.73,188.69,2.79]
[1760989099257,2.84,188.72,188.69,2.79]
[1760989100144,2.84,188.72,188.68,2.0421899]
[1760989100341,2.84,188.72,188.69,4.05051982]
[1760989100545,2.84,188.72,188.68,4.8321899]
[1760989100745,2.84,188.72,188.69,4.05045059]
[1760989100953,2.84,188.72,188.68,4.8321899]
[1760989101155,2.84,188.72,188.69,4.05044926]
[1760989101357,2.84,188.72,188.67,4.8321899]
[1760989101358,2.84,188.71,188.67,4.8321899]
[1760989101569,2.84,188.71,188.68,4.05024886]
[1760989101755,2.84,188.71,188.65,2.0421899]
[1760989101954,2.84,188.71,188.66,8.99464796]
[1760989102149,2.84,188.71,188.67,4.05084773]
[1760989102345,2.84,188.69,188.64,4.8321899]
[1760989102646,2.84,188.69,188.57,9.90746865]
[1760989102647,2.84,188.69,188.65,4.05144863]
[1760989102850,2.84,188.69,188.61,7.7064124]
[1760989103057,2.84,188.69,188.62,8.97972108]
[1760989103253,2.84,188.69,188.63,8.97972108]
[1760989103446,2.84,188.66,188.64,8.97972108]
[1760989103651,2.84,188.66,188.59,2.79]
[1760989103652,2.84,188.66,188.61,2.79]
[1760989103852,2.84,188.74,188.63,2.79]
[1760989104052,4.7689,188.69,188.64,4.03443907]
[1760989104352,2.84,188.68,188.6,2.79]
[1760989104553,7.6094,188.67,188.61,11.76595628]
[1760989104752,7.6094,188.67,188.63,2.79]
[1760989104957,2.84,188.66,188.59,4.9164124]
[1760989105145,2.84,188.66,188.61,2.79]
[1760989105346,2.84,188.66,188.62,8.97595628]
[1760989105557,2.84,188.66,188.63,4.03306009]
[1760989105758,2.84,188.66,188.62,2.79]
[1760989105951,2.84,188.66,188.63,4.03155713]
[1760989106256,2.84,188.66,188.62,2.79]
[1760989106457,2.84,188.66,188.63,4.03055568]
[1760989106656,2.84,188.66,188.62,2.79]
[1760989106857,2.84,188.66,188.63,4.03071944]
[1760989107057,4.7694,188.67,188.62,2.79]
[1760989107354,7.6094,188.67,188.63,6.77072929]
[1760989107555,7.6094,188.67,188.63,2.74]
[1760989107860,4.7688,188.69,188.63,2.74]
[1760989108061,7.6788,188.69,188.65,2.74]
[1760989108559,4.7683,188.71,188.65,2.74]
[1760989108860,2.91,188.73,188.66,4.02781481]
[1760989109158,2.91,188.73,188.65,2.74]
[1760989110163,7.6787,188.7,188.65,2.74]
[1760989111360,7.6787,188.7,188.67,2.74]
[1760989112662,4.7687,188.7,188.67,2.74]
[1760989112865,4.7687,188.7,188.62,2.74]
[1760989113164,4.7687,188.7,188.64,2.74]
[1760989113361,7.6787,188.7,188.66,2.74]
[1760989114558,4.768,188.72,188.66,2.74]
[1760989115964,4.7684,188.71,188.66,2.74]
[1760989116155,7.6784,188.71,188.66,2.74]
[1760989116356,7.6784,188.71,188.68,2.74]
[1760989117462,4.7686,188.7,188.68,2.74]
[1760989118370,7.6786,188.7,188.65,2.74]
[1760989118563,30.24,188.76,188.65,2.74]
[1760989118564,2.91,188.68,188.65,2.74]
[1760989118765,2.91,188.72,188.65,2.74]
[1760989118964,2.91,188.72,188.66,4.02942863]
[1760989119167,2.91,188.72,188.64,3.19283836]
[1760989119168,2.91,188.72,188.68,2.74]
[1760989119362,2.91,188.72,188.65,2.74]
[1760989119666,2.91,188.72,188.66,6.77000742]
[1760989119865,2.91,188.72,188.66,2.74]
[1760989120075,7.6784,188.71,188.66,2.74]
[1760989121272,30.24,188.76,188.63,2.74]
[1760989121273,2.91,188.7,188.63,2.74]
[1760989121573,2.91,188.7,188.64,11.71220264]
[1760989121763,2.91,188.7,188.65,4.0314156]
[1760989121957,2.91,188.7,188.66,2.74]
[1760989122970,4.7689,188.69,188.66,2.74]
[1760989124271,7.6789,188.69,188.66,2.74]
[1760989126374,4.7691,188.68,188.62,2.74]
[1760989126564,2.91,188.67,188.63,11.72149587]
[1760989126764,2.91,188.67,188.64,8.98149587]
[1760989127072,2.91,188.67,188.65,4.03566648]
[1760989127264,2.91,188.67,188.63,2.74]
[1760989127465,2.91,188.67,188.64,11.72104811]
[1760989127664,4.7691,188.68,188.65,6.77546954]
[1760989127860,7.6791,188.68,188.65,2.74]
[1760989128877,4.7691,188.68,188.65,2.74]
[1760989129075,4.7691,188.68,188.66,6.77481476]
[1760989129276,4.7691,188.68,188.66,2.74]
[1760989129777,7.6791,188.68,188.62,2.74]
[1760989129970,7.6791,188.68,188.64,2.74]
[1760989130170,2.91,188.67,188.65,4.03498483]
[1760989130471,2.91,188.67,188.64,2.74]
[1760989130670,2.91,188.67,188.65,4.03486997]
[1760989130874,2.91,188.67,188.64,2.74]
[1760989131071,2.91,188.67,188.65,4.03541384]
[1760989131274,2.91,188.67,188.64,2.74]
[1760989131579,2.91,188.67,188.65,4.03571929]
[1760989131774,2.91,188.67,188.65,2.74]
[1760989132368,4.7691,188.68,188.65,2.74]
[1760989132569,2.91,188.67,188.65,2.74]
[1760989133172,2.91,188.67,188.62,2.74]
[1760989133380,2.91,188.67,188.64,2.74]
[1760989133583,2.91,188.67,188.65,4.0295661]
[1760989133778,2.91,188.67,188.65,2.74]
[1760989133974,2.91,188.67,188.61,9.6871124]
[1760989134180,2.91,188.66,188.63,2.74]
[1760989134373,2.91,188.66,188.64,4.0295661]
[1760989134666,2.91,188.66,188.63,2.74]
[1760989134872,2.91,188.65,188.64,4.03047053]
[1760989135067,4.7696,188.66,188.63,2.74]
[1760989135880,4.7696,188.66,188.64,4.02385438]
[1760989136074,7.6796,188.66,188.63,2.74]
[1760989136478,4.7696,188.66,188.64,6.76010898]
[1760989136678,4.7696,188.66,188.64,2.74]
[1760989136879,4.7692,188.68,188.64,2.74]
[1760989137080,2.91,188.67,188.64,2.74]
[1760989138278,2.91,188.67,188.65,4.0246241]
[1760989138477,2.91,188.67,188.64,2.74]
[1760989138776,9.535,188.75,188.66,2.71]
[1760989138777,2.81,188.7,188.66,2.71]
[1760989138973,2.81,188.74,188.67,4.02192149]
[1760989139176,2.81,188.74,188.68,4.02378606]
[1760989139385,2.81,188.74,188.67,2.71]
[1760989139577,2.81,188.74,188.68,4.02340525]
[1760989139776,2.81,188.74,188.67,2.71]
[1760989139980,4.7682,188.72,188.68,4.02307392]
[1760989140179,2.81,188.71,188.67,2.71]
[1760989140383,2.81,188.71,188.68,4.02468674]
[1760989140580,2.81,188.71,188.67,2.71]
[1760989140881,2.81,188.7,188.68,4.02485273]
[1760989141179,2.81,188.7,188.67,2.71]
[1760989141378,2.81,188.7,188.68,4.02611031]
[1760989141578,2.81,188.7,188.67,2.71]
[1760989141889,7.5787,188.7,188.68,4.02644868]
[1760989142186,7.5787,188.7,188.67,2.71]
[1760989142477,7.5787,188.7,188.68,4.02721417]
[1760989142683,7.5787,188.7,188.67,2.71]
[1760989142880,2.81,188.7,188.68,4.02721295]
[1760989143080,2.81,188.73,188.69,6.73659359]
[1760989143282,2.81,188.73,188.69,2.71]
[1760989143989,2.81,188.71,188.69,2.71]
[1760989144486,7.5784,188.71,188.69,2.71]
[1760989144686,7.5784,188.71,188.66,2.71]
[1760989144986,7.5784,188.71,188.67,11.67960839]
[1760989145182,7.5784,188.71,188.65,4.9164124]
[1760989145183,7.5784,188.71,188.69,2.71]
[1760989145579,7.5784,188.71,188.7,4.0268009]
[1760989146487,7.5784,188.71,188.66,2.71]
[1760989146787,7.5784,188.71,188.67,11.67944452]
[1760989146988,7.5784,188.71,188.68,8.96944452]
[1760989147180,7.5784,188.71,188.69,4.02692777]
[1760989147380,7.5784,188.71,188.67,2.71]
[1760989147579,7.5784,188.71,188.68,8.97007381]
[1760989147780,7.5784,188.71,188.69,4.02717653]
[1760989147987,7.5784,188.71,188.67,2.71]
[1760989148180,7.5784,188.71,188.68,8.97008472]
[1760989148382,4.7684,188.71,188.69,4.02718143]
[1760989148587,7.5784,188.71,188.66,2.71]
[1760989148890,7.5784,188.71,188.67,11.67975618]
[1760989149089,4.7684,188.71,188.68,8.96975618]
[1760989149282,2.81,188.7,188.69,4.02703464]
[1760989149990,2.81,188.69,188.65,2.71]
[1760989150189,2.81,188.69,188.66,8.97199561]
[1760989150391,2.81,188.69,188.63,2.71]
[1760989150590,2.81,188.69,188.64,11.68526909]
[1760989150794,2.81,188.69,188.65,11.68526909]
[1760989150994,2.81,188.69,188.66,4.02956525]
[1760989151194,2.81,188.69,188.65,2.71]
[1760989151395,2.81,188.69,188.66,4.03040146]
[1760989151595,2.81,188.69,188.65,2.71]
[1760989151796,2.81,188.69,188.66,6.73997604]
[1760989151986,2.81,188.69,188.67,4.02997604]
[1760989152291,2.81,188.72,188.69,2.71]
[1760989152487,2.81,188.72,188.7,4.02997604]
[1760989152687,2.81,188.72,188.66,2.71]
[1760989152982,3.19283836,188.75,188.67,4.02915401]
[1760989153189,2.81,188.74,188.63,2.71]
[1760989153487,4.7694,188.67,188.64,4.03053918]
[1760989153687,2.81,188.66,188.65,4.03053918]
[1760989154100,2.81,188.66,188.65,8.95418634]
[1760989154494,2.81,188.68,188.6,4.9164124]
[1760989154689,2.81,188.68,188.61,8.95878278]
[1760989154893,2.81,188.68,188.62,4.0327219]
[1760989155092,2.69,188.62,188.57,4.9164124]
[1760989155300,2.69,188.62,188.58,6.75694322]
[1760989155501,2.69,188.62,188.59,6.75694322]
[1760989155799,2.69,188.62,188.6,3.99694322]
[1760989155988,2.69,188.62,188.61,3.99694322]
[1760989156391,2.69,188.62,188.59,2.76]
[1760989156586,2.69,188.62,188.6,3.99313203]
[1760989156790,4.7704,188.63,188.57,2.76]
[1760989156992,7.4604,188.63,188.59,2.76]
[1760989157191,7.4604,188.63,188.6,3.99313203]
[1760989157392,7.4604,188.63,188.59,2.76]
[1760989157592,7.4604,188.63,188.6,3.99161921]
[1760989157897,2.69,188.62,188.59,2.76]
[1760989158099,2.69,188.62,188.6,3.99140995]
[1760989158299,2.69,188.62,188.59,2.76]
[1760989158494,2.69,188.62,188.6,3.99016979]
[1760989158692,2.69,188.62,188.59,2.76]
[1760989158988,2.69,188.62,188.6,3.99008969]
[1760989159193,2.69,188.62,188.56,2.76]
[1760989159389,2.69,188.62,188.57,6.74971571]
[1760989159599,2.69,188.62,188.58,3.98971571]
[1760989159798,2.69,188.62,188.59,3.98971571]
[1760989160004,4.7709,188.61,188.58,2.76]
[1760989160502,4.7709,188.61,188.59,3.98815245]
[1760989160703,4.7709,188.61,188.58,2.76]
[1760989160903,4.7709,188.61,188.59,3.98823372]
[1760989161200,4.7709,188.61,188.58,2.76]
[1760989161395,4.7709,188.61,188.59,3.98708146]
[1760989161607,4.7709,188.61,188.58,2.76]
[1760989161803,4.7709,188.61,188.59,3.98707819]
[1760989162005,4.7709,188.61,188.58,2.76]
[1760989162307,4.7704,188.63,188.6,2.76]
[1760989163206,7.4604,188.63,188.6,2.76]
[1760989165307,2.69,188.62,188.58,4.80407131]
[1760989165509,2.69,188.62,188.59,6.75347567]
[1760989165709,2.69,188.62,188.59,2.76]
[1760989166412,7.4607,188.62,188.58,2.04407131]
[1760989166602,7.4607,188.62,188.59,3.99303748]
[1760989166796,7.4607,188.62,188.58,4.80407131]
[1760989167311,2.86,188.61,188.58,4.80407131]
[1760989167701,7.6309,188.61,188.56,2.04407131]
[1760989167899,7.6309,188.61,188.57,6.6930977]
[1760989168103,7.6309,188.61,188.58,3.9930977]
[1760989168304,7.6309,188.61,188.57,2.7]
[1760989168499,2.86,188.6,188.56,2.04407131]
[1760989168705,2.86,188.6,188.57,6.69208116]
[1760989169011,2.86,188.6,188.57,2.7]
[1760989170708,4.7709,188.61,188.57,2.7]
[1760989170914,4.7709,188.61,188.59,2.7]
[1760989172206,4.7704,188.63,188.59,2.7]
[1760989172412,7.6304,188.63,188.59,2.7]
[1760989172916,2.86,188.62,188.59,2.7]
[1760989173610,9.5366,188.71,188.55,4.7722]
[1760989173611,2.86,188.69,188.61,2.7]
[1760989173808,2.86,188.69,188.62,2.04407131]
[1760989174607,2.86,188.66,188.62,4.74407131]
[1760989174807,2.86,188.66,188.63,2.7]
[1760989177312,7.6289,188.69,188.63,2.7]
[1760989177515,2.86,188.69,188.65,2.7]
[1760989178216,2.86,188.71,188.65,2.7]
[1760989178717,7.6284,188.71,188.65,2.7]
[1760989178912,2.86,188.7,188.65,2.7]
[1760989181810,2.86,188.69,188.61,2.7]
[1760989182016,2.86,188.69,188.62,3.98787426]
[1760989182317,2.86,188.69,188.61,4.74407131]
[1760989182318,2.04407131,188.68,188.63,3.98787426]
[1760989182519,2.86,188.67,188.61,2.7]
[1760989182817,2.86,188.67,188.63,2.7]
[1760989190021,4.7694,188.67,188.63,2.7]
[1760989190319,2.86,188.66,188.6,2.7]
[1760989190519,2.86,188.71,188.62,2.7]
[1760989190714,2.86,188.71,188.59,2.04407131]
[1760989190715,4.90407131,188.71,188.64,2.7]
[1760989192033,9.67247131,188.71,188.64,2.7]
[1760989194230,4.7686,188.7,188.65,3.98818047]
[1760989194434,2.86,188.69,188.66,2.7]
[1760989194636,4.7686,188.7,188.66,2.7]
[1760989194930,7.6286,188.7,188.66,2.7]
[1760989195634,2.86,188.69,188.66,2.7]
[1760989196628,4.7686,188.7,188.66,2.7]
[1760989196629,2.86,188.7,188.66,2.7]
[1760989196829,4.90407131,188.71,188.66,2.7]
[1760989197027,2.04407131,188.71,188.66,2.7]
[1760989197226,2.66,188.74,188.66,2.7]
[1760989197434,4.70407131,188.74,188.68,2.76]
[1760989198539,4.7679,188.73,188.68,2.76]
[1760989198736,2.66,188.72,188.68,2.76]
[1760989201236,2.66,188.72,188.69,5.05535913]
[1760989201440,2.66,188.72,188.69,2.76]
[1760989202437,2.04407131,188.74,188.69,2.76]
[1760989202834,4.70407131,188.74,188.69,2.76]
[1760989203041,2.66,188.74,188.69,2.76]
[1760989203438,4.7674,188.75,188.69,2.76]
[1760989203629,2.66,188.77,188.69,2.76]
[1760989203830,2.04407131,188.82,188.73,2.04407131]
[1760989204042,4.70407131,188.82,188.75,2.76]
[1760989204239,2.66,188.81,188.75,2.76]
[1760989204630,2.66,188.9,188.71,4.9164124]
[1760989204839,2.66,188.87,188.79,2.76]
[1760989205038,43.92,188.91,188.79,2.76]
[1760989205039,2.66,188.85,188.79,2.76]
[1760989205244,7.4248,188.85,188.79,2.76]
[1760989205632,2.66,188.84,188.75,4.80407131]
[1760989205940,4.70407131,188.81,188.73,2.76]
[1760989206241,2.04407131,188.77,188.7,2.76]
[1760989206435,2.66,188.76,188.7,2.76]
[1760989207438,2.04407131,188.79,188.71,2.76]
[1760989207745,2.66,188.79,188.72,2.04407131]
[1760989208042,2.66,188.79,188.74,2.04407131]
[1760989208243,4.70407131,188.82,188.75,2.76]
[1760989208741,7.4256,188.82,188.75,2.76]
[1760989208944,4.70407131,188.82,188.75,2.76]
[1760989209846,2.04407131,188.82,188.77,2.76]
[1760989210154,6.80907131,188.84,188.77,2.76]
[1760989211746,46.6,188.85,188.77,2.76]
[1760989211944,2.04407131,188.84,188.77,2.76]
[1760989212140,2.66,188.84,188.77,2.76]
[1760989212340,4.70407131,188.84,188.77,2.76]
[1760989213336,2.04407131,188.84,188.77,2.76]
[1760989213641,48.7049,188.85,188.77,2.76]
[1760989214046,43.94,188.85,188.78,2.76]
[1760989214740,43.94,188.85,188.78,4.80407131]
[1760989214945,43.94,188.85,188.79,2.76]
[1760989216141,43.94,188.85,188.8,2.04407131]
[1760989216346,43.94,188.85,188.81,2.72]
[1760989218345,2.79,188.94,188.82,2.72]
[1760989218651,2.79,188.93,188.84,4.76407131]
[1760989218850,2.04407131,188.9,188.84,2.72]
[1760989219042,2.79,188.89,188.81,2.72]
[1760989219238,4.83407131,188.88,188.81,2.72]
[1760989219445,9.59747131,188.91,188.82,2.72]
[1760989219643,9.59747131,188.91,188.84,2.72]
[1760989220148,2.79,188.91,188.84,2.72]
[1760989220340,2.79,188.94,188.84,2.72]
[1760989220541,2.04407131,188.93,188.84,2.72]
[1760989220938,43.94,188.97,188.87,2.04407131]
[1760989221146,43.94,188.97,188.88,2.72]
[1760989221350,2.04407131,188.96,188.88,2.72]
[1760989221554,2.79,188.97,188.88,2.72]
[1760989221743,4.83407131,188.97,188.9,2.72]
[1760989221942,2.79,188.96,188.9,2.72]
[1760989222452,4.83407131,188.96,188.9,2.72]
[1760989222943,2.04407131,188.94,188.86,4.76407131]
[1760989223149,2.79,188.93,188.86,2.72]
[1760989223346,2.04407131,188.92,188.77,4.9164124]
[1760989223550,2.04407131,188.87,188.81,2.72]
[1760989223750,2.79,188.86,188.82,2.72]
[1760989224055,2.04407131,188.85,188.78,2.72]
[1760989224241,2.79,188.82,188.75,2.72]
[1760989224447,2.79,188.82,188.76,8.93715979]
[1760989224752,2.79,188.82,188.77,11.65707811]
[1760989224953,2.79,188.82,188.78,2.72]
[1760989226543,2.79,188.87,188.8,2.72]
[1760989226860,5.97798528,188.9,188.82,2.72]
[1760989228051,2.76,188.89,188.82,2.72]
[1760989228957,2.76,188.89,188.78,4.7664]
[1760989229158,2.76,188.89,188.79,7.64866672]
[1760989229355,2.76,188.89,188.79,2.65]
[1760989230056,2.76,188.92,188.78,2.65]
[1760989230363,2.76,188.92,188.81,2.65]
[1760989231364,2.76,188.92,188.83,2.65]
[1760989231953,18.04,188.93,188.85,2.65]
[1760989232465,2.76,188.95,188.85,2.65]
[1760989232958,2.76,188.95,188.87,2.65]
[1760989234263,7.5225,188.94,188.87,2.65]
[1760989235651,2.76,188.91,188.79,4.9164124]
[1760989235968,2.76,188.91,188.77,106.02]
[1760989235969,2.76,188.91,188.81,2.65]
[1760989236157,7.5233,188.91,188.81,7.4155]
[1760989236356,7.5233,188.91,188.83,2.65]
[1760989238166,2.76,188.9,188.83,2.65]
[1760989238866,7.5236,188.9,188.83,2.65]
[1760989239261,2.76,188.87,188.79,2.65]
[1760989239468,2.76,188.87,188.8,5.00909703]
[1760989239771,2.76,188.87,188.79,2.65]
[1760989239967,2.76,188.87,188.8,2.65]
[1760989240264,2.76,188.9,188.81,8.96100027]
[1760989240473,2.76,188.9,188.83,2.65]
[1760989240965,4.7639,188.89,188.83,2.65]
[1760989241171,2.76,188.88,188.81,7.4155]
[1760989241470,2.76,188.91,188.83,2.65]
[1760989242369,2.76,188.91,188.84,5.01824438]
[1760989242566,2.76,188.91,188.85,5.01764573]
[1760989242762,2.76,188.91,188.85,2.65]
[1760989243166,7.5234,188.91,188.85,2.65]
[1760989243360,2.76,188.9,188.82,4.7653]
[1760989243670,2.76,188.9,188.83,8.97464311]
[1760989243874,2.76,188.89,188.82,2.65]
[1760989244165,2.76,188.89,188.83,5.0248645]
[1760989244369,2.76,188.89,188.8,7.4159]
[1760989244565,2.76,188.89,188.81,8.9832378]
[1760989244760,2.76,188.89,188.82,5.02516418]
[1760989244964,4.7641,188.88,188.8,7.4159]
[1760989245164,2.76,188.87,188.81,8.9832378]
[1760989245361,44.04,188.94,188.82,11.63337517]
[1760989245362,2.76,188.9,188.82,11.63337517]
[1760989245675,2.76,188.9,188.83,5.02516418]
[1760989245971,2.76,188.9,188.82,2.65]
[1760989246174,2.76,188.87,188.83,5.02535176]
[1760989246373,2.76,188.87,188.79,7.4162]
[1760989246569,2.76,188.87,188.8,8.99002436]
[1760989246760,2.76,188.87,188.81,8.99002436]
[1760989246964,2.76,188.87,188.82,5.02903653]
[1760989247273,2.76,188.87,188.83,5.03215729]
[1760989247470,2.76,188.87,188.8,4.7659]
[1760989247670,2.76,188.87,188.81,8.99603262]
[1760989247875,2.76,188.87,188.83,2.65]
[1760989248273,4.7642,188.88,188.83,2.65]
[1760989248478,7.5236,188.9,188.84,9.00098162]
[1760989248672,2.76,188.89,188.85,5.03537332]
[1760989248874,2.76,188.89,188.83,2.65]
[1760989249175,44.04,188.95,188.85,2.65]
[1760989249368,2.76,188.94,188.86,8.99998088]
[1760989249573,2.76,188.94,188.87,11.64998088]
[1760989249871,2.76,188.94,188.88,5.03523658]
[1760989250067,2.76,188.94,188.87,2.65]
[1760989250978,7.5226,188.94,188.87,2.65]
[1760989251173,2.76,188.93,188.88,5.03625085]
[1760989251379,2.76,188.93,188.83,2.65]
[1760989251579,2.76,188.9,188.84,9.005185]
[1760989251774,2.76,188.9,188.85,9.005185]
[1760989251978,2.76,188.9,188.83,2.65]
[1760989252179,2.76,188.9,188.84,9.00443875]
[1760989252374,2.76,188.9,188.83,2.65]
[1760989252375,2.76,188.88,188.8,2.65]
[1760989252677,2.76,188.88,188.81,9.01317397]
[1760989252875,2.76,188.88,188.82,9.01317397]
[1760989253075,2.76,188.88,188.83,8.99220691]
[1760989253280,2.76,188.88,188.84,5.04387512]
[1760989253481,2.76,188.87,188.8,2.65]
[1760989253675,2.76,188.87,188.81,8.99690196]
[1760989253978,2.76,188.87,188.82,11.64690196]
[1760989254181,4.7641,188.88,188.83,11.64690196]
[1760989254376,4.7641,188.88,188.84,8.99690196]
[1760989254377,7.5241,188.88,188.84,8.99690196]
[1760989254578,2.76,188.87,188.82,2.65]
[1760989254773,2.76,188.87,188.83,5.04491855]
[1760989254984,2.76,188.87,188.84,5.04491855]
[1760989255280,2.76,188.87,188.82,2.65]
[1760989255478,2.76,188.87,188.83,9.00054421]
[1760989255675,2.76,188.87,188.84,5.04618782]
[1760989255878,2.76,188.87,188.82,2.65]
[1760989256076,4.7641,188.88,188.84,2.65]
[1760989256282,2.76,188.87,188.8,2.65]
[1760989256579,2.76,188.87,188.81,11.65233713]
[1760989256771,2.76,188.87,188.83,2.65]
[1760989256974,2.76,188.87,188.84,5.04719655]
[1760989257175,2.76,188.87,188.83,2.65]
[1760989257373,7.4634,188.91,188.84,11.69389593]
[1760989257573,2.7,188.91,188.84,2.69]
[1760989258182,2.7,188.91,188.85,5.04921633]
[1760989258476,2.7,188.91,188.8,12.35507104]
[1760989258477,2.7,188.91,188.81,2.69]
[1760989258681,2.7,188.91,188.82,9.00634103]
[1760989258881,2.7,188.91,188.83,9.00634103]
[1760989259082,2.7,188.91,188.81,2.69]
[1760989259083,2.7,188.87,188.84,9.00634103]
[1760989259383,2.7,188.87,188.81,2.69]
[1760989259684,4.7641,188.88,188.82,11.69786094]
[1760989259873,7.4641,188.88,188.83,11.69786094]
[1760989260074,7.4641,188.88,188.84,9.00786094]
[1760989260274,4.7636,188.9,188.85,5.05066454]
[1760989260484,4.7636,188.9,188.83,2.69]
[1760989260775,4.7636,188.9,188.84,9.00789035]
[1760989260980,2.7,188.92,188.85,11.69748815]
[1760989261286,2.7,188.92,188.86,5.04927578]
[1760989261469,4.7632,188.91,188.85,2.69]
[1760989261676,7.4632,188.91,188.86,7.74017248]
[1760989261879,7.4632,188.91,188.86,2.69]
[1760989262080,7.4632,188.91,188.87,5.0495436]
[1760989262276,7.4632,188.91,188.86,2.69]
[1760989262690,7.4632,188.91,188.87,11.69688154]
[1760989262892,7.4632,188.91,188.87,2.69]
[1760989264081,7.4632,188.91,188.88,5.05079376]
[1760989264282,7.4632,188.91,188.87,2.69]
[1760989264481,7.4632,188.91,188.88,5.05190029]
[1760989264684,7.4632,188.91,188.87,2.69]
[1760989265892,4.7632,188.91,188.87,2.69]
[1760989266202,2.7,188.93,188.82,2.69]
[1760989266398,2.7,188.9,188.83,9.02427063]
[1760989266595,2.7,188.9,188.84,9.02427063]
[1760989266789,3.18798528,188.91,188.79,4.89917104]
[1760989266790,2.7,188.87,188.79,4.89917104]
[1760989266984,2.7,188.87,188.81,2.69]
[1760989267189,2.7,188.85,188.82,9.02687807]
[1760989267385,2.7,188.9,188.83,9.02687807]
[1760989267589,2.7,188.9,188.84,5.06119275]
[1760989267788,7.4649,188.85,188.78,4.89917104]
[1760989267988,2.7,188.85,188.79,9.03022286]
[1760989268294,2.7,188.84,188.75,2.69]
[1760989268496,2.7,188.84,188.76,9.03648858]
[1760989268790,7.4659,188.81,188.77,3.97015871]
[1760989269005,2.7,188.8,188.78,3.97015871]
[1760989269295,2.7,188.87,188.75,2.69]
[1760989269495,2.7,188.84,188.76,3.96936372]
[1760989269698,2.7,188.84,188.77,3.96936372]
[1760989269897,2.7,188.84,188.78,3.96936372]
[1760989270085,4.7659,188.81,188.75,2.69]
[1760989270286,4.7659,188.81,188.77,2.69]
[1760989270494,4.7659,188.81,188.78,3.96817737]
[1760989270693,7.4659,188.81,188.77,2.69]
[1760989271294,2.7,188.8,188.73,7.58917104]
[1760989271492,2.7,188.8,188.7,6.53222805]
[1760989271493,2.7,188.79,188.74,3.96775781]
[1760989271701,2.7,188.79,188.75,3.96775781]
[1760989271891,2.7,188.79,188.71,2.69]
[1760989272089,7.4665,188.79,188.72,3.96929521]
[1760989272293,2.7,188.78,188.73,3.96929521]